bitfinex-derivatives/quotes_ETHF0:USTF0_20230104
["timestamp","ask_amount","ask_price","bid_price","bid_amount"]
[1672844521910,2.5,1250.1,1249.8,5.0]
[1672844522121,5.32798844,1250.2,1249.8,5.0]
[1672844522122,5.32798844,1250.2,1249.8,12.995]
[1672844522317,5.32798844,1250.2,1249.8,16.0023]
[1672844522527,5.32798844,1250.2,1249.8,8.0073]
[1672844522744,2.5,1250.1,1249.8,8.0073]
[1672844522958,5.32798844,1250.2,1249.8,8.0073]
[1672844523170,2.82068844,1250.3,1249.9,7.995]
[1672844523586,2.32068844,1250.2,1250.0,2.5]
[1672844524424,2.32068844,1250.3,1250.0,15.495]
[1672844524641,2.32068844,1250.3,1250.2,5.0]
[1672844524856,2.32068844,1250.4,1250.2,5.0]
[1672844525587,2.32068844,1250.4,1250.3,2.5]
[1672844526428,7.62286378,1250.8,1250.4,11.4964]
[1672844526638,2.37828334,1250.7,1250.6,5.61566305]
[1672844526954,2.37828334,1250.8,1250.6,5.61566305]
[1672844527693,2.37828334,1250.8,1250.7,5.0]
[1672844528103,2.37828334,1250.9,1250.7,10.61566305]
[1672844529154,2.37828334,1250.9,1250.7,13.62296305]
[1672844529371,7.62286378,1251.4,1250.7,13.62296305]
[1672844529588,6.01824482,1251.4,1251.0,10.61566305]
[1672844529898,2.5,1251.4,1251.1,8.11566305]
[1672844530104,7.62286378,1251.6,1251.1,8.11566305]
[1672844530316,2.5,1251.5,1251.2,10.61566305]
[1672844530733,10.63016378,1251.7,1251.2,10.61566305]
[1672844530940,3.51824482,1251.8,1251.5,5.61566305]
[1672844531163,3.51824482,1251.8,1251.6,5.0]
[1672844531470,5.5073,1251.9,1251.6,10.61566305]
[1672844531684,3.0073,1251.9,1251.6,10.61566305]
[1672844531889,3.0073,1251.9,1251.7,7.61566305]
[1672844532208,3.51824482,1252.2,1251.8,10.61566305]
[1672844532410,3.0073,1251.9,1251.4,10.18318995]
[1672844532622,3.0073,1251.6,1251.2,5.0]
[1672844533355,3.51824482,1252.1,1251.5,12.995]
[1672844533675,0.5,1252.0,1251.6,9.995]
[1672844534305,3.0073,1252.1,1251.6,9.995]
[1672844534306,3.0073,1252.1,1251.9,5.0]
[1672844534515,3.0073,1252.1,1251.7,12.995]
[1672844534516,0.5,1252.0,1251.7,12.995]
[1672844534729,0.5,1252.0,1251.6,2.0]
[1672844535778,3.0073,1251.9,1251.6,2.0]
[1672844535984,11.0023,1251.9,1251.3,5.0]
[1672844536190,11.0023,1251.7,1251.2,4.1887]
[1672844536415,3.0073,1251.7,1251.3,2.0]
[1672844536616,3.0073,1251.5,1251.4,7.995]
[1672844537041,3.0073,1251.5,1251.3,2.0]
[1672844537671,3.0073,1251.5,1251.4,7.995]
[1672844537881,3.0073,1251.7,1251.4,12.995]
[1672844538613,3.0073,1251.9,1251.4,16.0023]
[1672844538826,3.0073,1252.1,1251.7,7.995]
[1672844539043,3.0073,1251.9,1251.8,12.995]
[1672844539243,3.0073,1251.9,1251.6,9.1764]
[1672844539456,3.0073,1251.9,1251.8,12.995]
[1672844539661,3.0073,1251.9,1251.8,5.0]
[1672844540502,3.0073,1252.1,1251.8,5.0]
[1672844541140,5.5073,1252.3,1252.0,5.0]
[1672844541343,5.5073,1252.3,1252.1,7.995]
[1672844541554,5.5073,1252.3,1252.0,5.0]
[1672844542295,3.0073,1252.3,1252.1,7.995]
[1672844542713,5.5073,1252.5,1252.3,7.995]
[1672844543446,3.0073,1252.5,1252.3,7.995]
[1672844544186,3.0073,1252.6,1252.5,7.995]
[1672844544391,3.5073,1253.0,1252.5,7.995]
[1672844544608,3.5073,1253.0,1252.7,12.995]
[1672844544814,3.5073,1253.0,1252.7,7.995]
[1672844545030,3.0073,1252.8,1252.7,7.995]
[1672844545341,2.5,1253.1,1252.8,10.495]
[1672844545556,3.0073,1253.0,1252.8,2.5]
[1672844546180,3.0073,1253.0,1252.8,7.995]
[1672844546392,1.21658679,1252.7,1252.4,10.39767963]
[1672844546608,3.0073,1252.5,1252.2,7.995]
[1672844546807,3.0073,1252.3,1252.2,7.995]
[1672844547234,3.0073,1252.3,1252.0,2.5]
[1672844547448,3.0073,1252.1,1252.0,2.5]
[1672844547652,3.0073,1252.1,1252.0,10.495]
[1672844547969,3.0073,1252.1,1251.9,2.0]
[1672844549648,3.0073,1252.1,1252.0,12.995]
[1672844550076,3.0073,1252.3,1252.0,12.995]
[1672844550904,3.0073,1252.5,1252.2,12.995]
[1672844551118,1.21658679,1252.7,1252.4,12.995]
[1672844551637,3.0073,1252.6,1252.4,12.995]
[1672844551854,1.21658679,1252.7,1252.4,12.995]
[1672844552058,3.0073,1253.2,1252.6,12.995]
[1672844552273,3.0,1253.6,1252.5,3.0073]
[1672844552274,3.0073,1253.4,1253.1,10.495]
[1672844552487,3.0073,1253.4,1253.1,11.6764]
[1672844552897,3.0073,1253.4,1253.1,3.6814]
[1672844553109,3.0073,1253.2,1252.8,5.0]
[1672844553324,3.0073,1253.0,1252.9,2.5]
[1672844553849,3.0073,1253.4,1253.1,7.995]
[1672844554053,2.5,1253.6,1253.3,5.0]
[1672844554054,3.0073,1253.6,1253.3,5.0]
[1672844554273,2.5,1253.5,1253.3,5.0]
[1672844554800,3.0073,1253.6,1253.3,5.0]
[1672844555009,3.0073,1253.6,1253.3,12.995]
[1672844555221,3.0073,1253.6,1253.3,5.0]
[1672844555739,3.0073,1253.4,1253.1,5.0]
[1672844555951,3.0073,1253.4,1252.9,2.5]
[1672844556165,3.0073,1253.4,1252.8,5.0]
[1672844556166,3.0073,1253.2,1252.8,5.0]
[1672844556371,3.0073,1253.0,1252.9,2.5]
[1672844557100,3.0073,1253.0,1252.8,5.0]
[1672844557314,3.0073,1253.0,1252.9,2.5]
[1672844557632,3.0073,1253.0,1252.6,2.0]
[1672844557844,3.0073,1252.8,1252.4,7.995]
[1672844558054,3.0073,1252.8,1252.3,5.0]
[1672844558268,2.5,1252.7,1252.4,2.5]
[1672844558683,3.0073,1252.6,1252.4,2.5]
[1672844558999,3.0073,1252.6,1252.3,7.0]
[1672844559207,0.5,1252.5,1252.3,2.0]
[1672844559622,0.5,1252.5,1252.2,3.0073]
[1672844559839,3.0073,1252.4,1252.1,2.5]
[1672844560053,3.0073,1252.4,1252.1,10.495]
[1672844560261,3.0073,1252.4,1252.1,2.5]
[1672844562367,3.0073,1252.4,1252.1,10.495]
[1672844563000,3.0073,1252.4,1252.1,2.5]
[1672844564161,3.0073,1252.4,1252.1,10.495]
[1672844564999,0.5,1252.5,1252.1,10.495]
[1672844565000,3.5073,1252.5,1252.1,10.495]
[1672844565208,3.0073,1252.5,1252.1,10.495]
[1672844565415,5.5073,1252.7,1252.2,12.995]
[1672844565627,3.0073,1252.8,1252.5,7.995]
[1672844565839,3.0073,1252.6,1252.4,5.0]
[1672844566150,3.0073,1252.6,1252.5,2.0]
[1672844566578,3.0073,1252.6,1252.4,5.0]
[1672844567939,11.0023,1252.6,1252.1,5.0]
[1672844568151,3.0073,1252.4,1252.2,2.5]
[1672844568360,0.5,1252.3,1252.2,2.5]
[1672844569316,0.5,1252.3,1252.1,5.0]
[1672844569725,0.5,1252.3,1252.0,5.0]
[1672844569940,3.0073,1252.2,1251.8,14.1764]
[1672844570256,3.0073,1252.2,1251.9,2.5]
[1672844570877,3.0073,1252.0,1251.6,5.0]
[1672844571091,3.0073,1252.0,1251.5,4.1887]
[1672844571092,3.0073,1252.0,1251.7,2.5]
[1672844571526,2.5,1251.9,1251.7,2.5]
[1672844572474,2.5,1251.9,1251.6,5.0]
[1672844572676,3.0073,1251.8,1251.4,7.5]
[1672844572879,3.0073,1251.8,1251.4,15.495]
[1672844573513,2.5,1251.9,1251.7,5.0]
[1672844573721,2.5,1251.9,1251.5,8.0073]
[1672844573934,2.5,1251.9,1251.6,2.0]
[1672844574361,3.0073,1252.0,1251.7,5.0]
[1672844575830,3.0073,1252.0,1251.6,9.995]
[1672844577087,3.0073,1251.8,1251.4,1.1814]
[1672844577297,7.995,1251.7,1251.3,5.0]
[1672844577508,7.995,1251.7,1251.1,12.2207]
[1672844577713,11.0023,1251.6,1251.2,2.5]
[1672844578145,3.0073,1251.4,1251.1,7.0]
[1672844578562,3.0073,1251.4,1251.0,13.689]
[1672844578768,3.0073,1251.4,1251.0,5.0]
[1672844579189,0.5,1251.3,1251.1,7.5]
[1672844580028,3.0073,1251.4,1251.1,2.5]
[1672844580238,3.0073,1251.4,1251.1,7.5]
[1672844580459,3.0073,1251.4,1251.1,15.495]
[1672844580660,3.0073,1251.6,1251.1,10.5073]
[1672844580868,3.0073,1251.6,1251.2,5.0]
[1672844581087,0.5,1251.5,1251.2,5.0]
[1672844581818,0.5,1251.5,1251.2,12.995]
[1672844582027,0.5,1251.5,1251.1,2.5]
[1672844583093,4.1887,1251.6,1251.1,10.495]
[1672844583293,3.0073,1251.6,1251.1,13.5023]
[1672844583499,3.0073,1251.6,1251.2,12.995]
[1672844583716,3.0073,1251.6,1251.4,12.995]
[1672844583920,3.0073,1251.6,1251.4,5.0]
[1672844585182,3.0073,1251.6,1251.4,12.995]
[1672844585923,3.0073,1251.6,1251.2,12.995]
[1672844586131,3.0073,1251.6,1251.2,5.0]
[1672844588551,3.0073,1251.6,1251.1,10.495]
[1672844588761,3.0073,1251.6,1251.2,5.0]
[1672844589394,3.0073,1251.6,1251.1,10.495]
[1672844589704,11.0023,1251.6,1251.0,12.995]
[1672844589921,3.0073,1251.4,1251.0,12.995]
[1672844590329,3.0073,1251.4,1251.1,2.5]
[1672844590543,3.0073,1251.4,1251.0,7.995]
[1672844590756,3.0073,1251.2,1250.8,5.0]
[1672844590962,3.0073,1251.2,1250.9,2.5]
[1672844591385,3.0073,1251.0,1250.8,5.0]
[1672844591806,3.0073,1251.0,1250.9,2.5]
[1672844592124,3.0073,1251.0,1250.8,5.0]
[1672844592651,3.0073,1251.0,1250.9,2.0]
[1672844593270,3.0073,1251.0,1250.6,7.995]
[1672844593481,3.0073,1251.0,1250.5,1.1814]
[1672844593482,3.0073,1250.8,1250.3,15.42538237]
[1672844593693,3.0073,1250.6,1250.1,10.38572432]
[1672844593902,3.0073,1250.4,1250.2,2.5]
[1672844594538,0.5,1250.3,1250.2,2.5]
[1672844594753,3.0073,1250.4,1250.2,2.5]
[1672844594973,3.0073,1250.7,1250.2,15.495]
[1672844595179,3.0073,1250.7,1250.5,5.0]
[1672844595387,3.0073,1251.0,1250.5,16.0023]
[1672844595595,3.0073,1251.0,1250.6,5.0]
[1672844595805,3.0073,1250.8,1250.7,1.5]
[1672844596016,3.0073,1250.8,1250.6,5.0]
[1672844596444,0.5,1250.7,1250.6,5.0]
[1672844596968,3.0073,1250.8,1250.6,5.0]
[1672844600120,11.0023,1250.8,1250.1,7.5]
[1672844600332,3.0073,1250.5,1250.1,7.5]
[1672844600643,7.995,1250.8,1250.1,5.0]
[1672844600644,3.0073,1250.3,1250.1,5.0]
[1672844600853,3.0073,1250.3,1249.9,5.0]
[1672844601059,11.0023,1250.3,1250.0,2.5]
[1672844601273,3.0073,1250.1,1249.8,2.5]
[1672844601691,0.5,1250.0,1249.8,2.5]
[1672844602215,3.0073,1250.1,1249.8,2.5]
[1672844602532,3.0073,1250.1,1250.0,1.5]
[1672844602945,3.5073,1250.3,1250.0,1.5]
[1672844603153,3.0073,1250.3,1250.1,5.0]
[1672844604004,3.0073,1250.3,1250.1,12.995]
[1672844604207,3.0073,1250.3,1250.1,5.0]
[1672844604424,11.0023,1250.3,1250.1,5.0]
[1672844604838,11.0023,1250.3,1250.0,1.5]
[1672844605051,3.0073,1250.3,1250.0,1.5]
[1672844605897,3.0073,1250.3,1250.2,5.0]
[1672844606108,3.0073,1250.3,1250.0,6.5]
[1672844608633,11.0023,1250.5,1250.0,6.5]
[1672844608844,3.0073,1250.3,1250.0,14.495]
[1672844609050,3.0073,1250.5,1250.0,15.6764]
[1672844609362,3.0073,1250.5,1250.0,7.6814]
[1672844609579,3.0073,1250.5,1250.0,15.6764]
[1672844609780,3.0073,1250.5,1250.2,5.0]
[1672844610100,3.0073,1250.5,1250.4,5.0]
[1672844610516,3.0073,1250.5,1250.2,5.0]
[1672844610722,3.0073,1250.5,1250.2,7.5]
[1672844611142,3.0073,1250.7,1250.2,7.5]
[1672844611364,0.5073,1250.7,1250.2,7.5]
[1672844611677,8.5023,1250.7,1250.2,7.5]
[1672844611878,7.995,1250.4,1250.1,3.0073]
[1672844612303,7.995,1250.4,1250.1,5.5073]
[1672844612510,7.995,1250.4,1250.0,3.0073]
[1672844612723,14.0023,1250.3,1249.6,13.689]
[1672844612937,7.995,1250.0,1249.6,18.689]
[1672844613140,2.69222808,1250.1,1249.8,5.0]
[1672844613351,3.0073,1250.3,1249.9,2.5]
[1672844614306,0.5,1250.2,1249.9,2.5]
[1672844614718,0.5,1250.2,1249.8,2.5]
[1672844615036,3.0073,1250.1,1249.8,2.5]
[1672844615454,0.5,1250.2,1249.8,2.5]
[1672844615667,0.5,1250.2,1249.8,10.495]
[1672844615871,0.5,1250.2,1249.8,2.5]
[1672844616076,3.0073,1250.1,1249.7,5.0]
[1672844616297,3.0073,1249.9,1249.6,13.689]
[1672844616514,3.0073,1249.9,1249.6,2.5]
[1672844616924,7.995,1250.0,1249.6,2.5]
[1672844617248,2.5,1249.9,1249.7,5.0]
[1672844617459,13.5023,1249.9,1249.4,2.5]
[1672844617776,7.995,1249.6,1249.2,6.18752432]
[1672844617993,7.995,1249.6,1249.3,3.0073]
[1672844618296,7.995,1249.5,1249.2,5.0]
[1672844618508,7.995,1249.5,1249.1,16.6963]
[1672844618716,7.995,1249.5,1249.3,2.5]
[1672844618927,3.0073,1249.6,1249.3,2.5]
[1672844619140,3.0073,1249.6,1249.3,5.5073]
[1672844619354,3.0073,1249.6,1249.3,2.5]
[1672844619570,3.0073,1249.6,1249.2,2.5]
[1672844619982,7.995,1249.5,1249.2,2.5]
[1672844620928,3.0073,1249.6,1249.3,3.0073]
[1672844621341,3.0073,1249.6,1249.4,2.5]
[1672844621670,3.0073,1249.8,1249.4,7.5]
[1672844621871,2.5,1249.9,1249.4,7.5]
[1672844622084,11.0023,1249.8,1249.4,2.5]
[1672844622500,3.0073,1249.6,1249.4,2.5]
[1672844622719,11.0023,1249.6,1249.3,4.5073]
[1672844622928,11.0023,1249.6,1249.3,1.5]
[1672844623455,11.0023,1249.6,1249.4,5.0]
[1672844623772,11.0023,1249.6,1249.3,1.5]
[1672844624400,11.0023,1249.8,1249.4,3.0073]
[1672844624714,11.6764,1249.9,1249.4,8.0073]
[1672844624922,0.5,1250.2,1249.6,3.0073]
[1672844625243,3.5073,1250.2,1249.7,2.5]
[1672844625657,11.5023,1250.2,1249.7,2.5]
[1672844626182,11.0023,1250.0,1249.7,2.5]
[1672844626810,11.0023,1250.0,1249.6,3.0073]
[1672844627022,11.0023,1250.0,1249.5,2.5]
[1672844627340,7.995,1249.9,1249.5,2.5]
[1672844627550,3.0073,1250.0,1249.8,2.5]
[1672844628386,7.995,1250.1,1249.5,6.69482432]
[1672844628809,7.995,1249.9,1249.5,5.5073]
[1672844629437,7.995,1250.1,1249.7,5.0]
[1672844629651,4.27833118,1250.3,1249.8,2.5]
[1672844629859,3.0073,1250.4,1249.9,5.0]
[1672844630073,8.38761468,1250.5,1249.9,8.0073]
[1672844630279,4.78563118,1250.4,1249.9,8.0073]
[1672844630497,7.995,1250.3,1250.0,2.5]
[1672844630710,7.28563118,1250.4,1250.0,2.5]
[1672844630915,2.5,1250.4,1250.0,2.5]
[1672844631329,5.5073,1250.4,1250.0,2.5]
[1672844631548,5.5073,1250.4,1249.9,4.5073]
[1672844631549,3.0073,1250.2,1249.9,4.5073]
[1672844631761,3.0073,1250.2,1250.0,2.5]
[1672844632390,3.0073,1250.2,1249.9,1.5]
[1672844632601,11.0023,1250.2,1249.9,1.5]
[1672844632813,12.78063118,1250.2,1249.9,1.5]
[1672844633022,11.0023,1250.2,1249.9,1.5]
[1672844633224,3.0073,1250.2,1249.9,1.5]
[1672844633432,3.0073,1250.2,1249.9,4.5073]
[1672844634067,1.77833118,1250.3,1249.9,4.5073]
[1672844634272,7.995,1250.3,1249.9,4.5073]
[1672844634806,10.82511468,1250.4,1249.9,4.5073]
[1672844635021,8.46703118,1250.4,1249.9,4.5073]
[1672844635446,15.28063118,1250.4,1249.9,4.5073]
[1672844635860,15.28063118,1250.4,1249.9,9.5073]
[1672844636178,8.88761468,1250.5,1250.1,3.0073]
[1672844636386,2.5,1250.4,1250.2,2.5]
[1672844636908,12.27333118,1250.4,1249.9,26.15806504]
[1672844637229,12.27333118,1250.4,1250.2,2.5]
[1672844637439,12.27333118,1250.4,1249.9,19.38382432]
[1672844637440,17.63871468,1250.4,1249.9,19.38382432]
[1672844637640,7.995,1250.3,1249.9,19.38382432]
[1672844637965,9.77333118,1250.3,1249.9,19.38382432]
[1672844638904,12.13141468,1250.3,1249.9,18.1963]
[1672844639527,12.13141468,1250.3,1250.1,2.5]
[1672844639745,9.77333118,1250.3,1250.1,2.5]
[1672844640156,9.64371468,1250.4,1250.1,2.5]
[1672844640372,4.27833118,1250.4,1250.1,5.5073]
[1672844640578,1.77833118,1250.4,1250.1,6.69482432]
[1672844640792,4.27833118,1250.4,1250.1,6.69482432]
[1672844641013,5.46997594,1250.4,1250.1,6.69482432]
[1672844641430,1.19164476,1250.4,1250.1,8.46906504]
[1672844641642,5.44284476,1250.5,1250.3,3.0073]
[1672844642178,4.2512,1250.5,1250.4,7.5]
[1672844642489,4.2512,1250.5,1250.4,8.68752432]
[1672844643226,4.2512,1250.5,1250.4,16.68252432]
[1672844644062,4.2512,1250.5,1250.4,3.68752432]
[1672844644278,4.2512,1250.5,1250.4,2.5]
[1672844645850,4.2512,1250.5,1250.4,7.5]
[1672844646795,0.0002,1250.5,1250.4,15.495]
[1672844647003,1.00592188,1250.8,1250.6,7.995]
[1672844647213,1.00592188,1250.8,1250.7,16.5023]
[1672844648051,1.19164476,1251.2,1250.8,1.1814]
[1672844648371,1.19164476,1251.2,1251.1,1.5]
[1672844648583,3.46997594,1251.2,1251.0,3.0073]
[1672844648786,11.46497594,1251.2,1250.8,1.1814]
[1672844649108,1.19164476,1251.1,1250.8,3.0073]
[1672844649732,11.46497594,1251.2,1250.8,3.0073]
[1672844649941,9.18664476,1251.1,1250.7,7.0]
[1672844650152,9.18664476,1251.1,1250.8,3.0073]
[1672844650371,12.19394476,1251.1,1250.8,3.0073]
[1672844650683,12.19394476,1251.1,1250.7,7.0]
[1672844650896,1.19164476,1251.0,1250.7,5.0]
[1672844651109,13.97227594,1251.1,1250.7,5.0]
[1672844651420,13.97227594,1251.1,1250.8,2.0]
[1672844651629,13.97227594,1251.1,1250.7,5.0]
[1672844652168,13.97227594,1251.1,1250.8,2.0]
[1672844652379,12.19394476,1251.1,1250.8,2.0]
[1672844652579,12.19394476,1251.1,1250.7,2.0]
[1672844652787,13.97227594,1251.1,1250.7,2.0]
[1672844653739,11.0023,1250.9,1250.5,13.691]
[1672844653954,12.19394476,1250.9,1250.5,13.691]
[1672844654164,13.97227594,1250.9,1250.6,2.5]
[1672844654471,1.19164476,1250.8,1250.5,13.691]
[1672844654677,11.0023,1250.7,1250.6,2.5]
[1672844654889,11.0023,1250.7,1250.5,0.002]
[1672844655211,1.19164476,1250.6,1250.2,13.689]
[1672844655420,7.995,1250.4,1250.0,13.689]
[1672844656148,7.995,1250.4,1250.1,2.5]
[1672844656573,7.995,1250.4,1250.0,13.689]
[1672844656781,7.995,1250.2,1250.0,13.689]
[1672844656990,7.995,1250.2,1249.7,3.0073]
[1672844657205,0.5,1250.1,1249.8,2.5]
[1672844657416,11.5023,1250.1,1249.8,2.5]
[1672844657837,11.5023,1250.1,1249.6,2.5]
[1672844658039,11.5023,1250.1,1249.5,1.89061904]
[1672844658249,7.995,1249.8,1249.5,1.89061904]
[1672844658670,7.995,1249.6,1249.5,1.89061904]
[1672844659095,3.0073,1249.7,1249.5,4.39061904]
[1672844659303,3.0073,1249.9,1249.5,4.39061904]
[1672844659513,3.0073,1249.9,1249.5,7.39791904]
[1672844659829,2.5,1250.1,1249.7,3.0073]
[1672844660032,2.5,1250.1,1249.8,1.5]
[1672844660242,10.495,1250.1,1249.8,1.5]
[1672844660459,11.68664476,1250.1,1249.8,1.5]
[1672844660776,0.5,1249.9,1249.7,3.0073]
[1672844660991,0.5,1249.9,1249.8,1.5]
[1672844661188,3.0073,1250.0,1249.8,1.5]
[1672844661402,2.5,1250.1,1249.8,1.5]
[1672844662139,2.5,1250.1,1249.9,3.0073]
[1672844662350,0.5,1250.2,1249.9,3.0073]
[1672844662668,2.5,1250.2,1249.9,3.0073]
[1672844662977,6.69894476,1250.2,1249.8,1.5]
[1672844663190,8.47727594,1250.2,1249.7,3.0073]
[1672844663401,7.995,1249.9,1249.7,3.0073]
[1672844664238,11.0023,1250.0,1249.7,3.0073]
[1672844664449,9.18664476,1250.1,1249.8,1.5]
[1672844665184,7.995,1250.1,1249.8,1.5]
[1672844667504,7.995,1250.1,1249.7,3.0073]
[1672844667716,1.19164476,1250.0,1249.6,2.5]
[1672844667917,7.995,1249.9,1249.6,2.5]
[1672844669074,7.995,1249.9,1249.5,7.39791904]
[1672844669707,7.995,1249.9,1249.6,2.5]
[1672844670134,11.0023,1249.9,1249.6,2.5]
[1672844670339,11.0023,1249.9,1249.5,1.89061904]
[1672844670658,13.97227594,1249.9,1249.5,1.89061904]
[1672844671069,7.995,1249.6,1249.5,1.89061904]
[1672844673390,9.18664476,1249.6,1249.5,1.89061904]
[1672844673805,10.96497594,1249.6,1249.5,1.89061904]
[1672844674016,9.68664476,1249.6,1249.5,1.89061904]
[1672844674223,10.495,1249.5,1249.1,7.56293515]
[1672844674437,7.995,1249.2,1249.1,7.56293515]
[1672844675067,7.995,1249.2,1249.1,5.16493515]
[1672844676856,3.0073,1249.3,1249.1,6.66493515]
[1672844677073,7.995,1249.4,1249.1,6.66493515]
[1672844679054,0.5,1249.3,1249.1,6.66493515]
[1672844679265,0.5,1249.3,1249.1,5.16493515]
[1672844679474,7.995,1249.2,1249.1,5.16493515]
[1672844684100,7.995,1249.2,1249.0,7.56401765]
[1672844684316,14.0023,1249.1,1249.0,5.15235761]
[1672844684524,14.0023,1249.1,1249.0,5.04027691]
[1672844685263,14.0023,1249.1,1249.0,2.64227691]
[1672844685474,7.995,1248.9,1248.5,4.2589]
[1672844685788,7.995,1248.7,1248.5,4.2589]
[1672844686201,7.995,1248.6,1248.5,4.2589]
[1672844687038,3.0073,1248.8,1248.5,4.2589]
[1672844687249,2.5,1249.0,1248.5,7.2662]
[1672844687250,5.5073,1249.0,1248.5,7.2662]
[1672844687467,5.5073,1249.0,1248.5,4.2589]
[1672844687680,5.5073,1249.0,1248.6,2.5]
[1672844688095,7.995,1248.9,1248.6,2.5]
[1672844688840,11.0023,1248.8,1248.6,2.5]
[1672844689257,11.0023,1248.8,1248.5,4.2589]
[1672844689573,7.995,1248.6,1248.5,4.2589]
[1672844690416,7.995,1248.7,1248.5,4.2589]
[1672844690728,11.0023,1248.6,1248.5,4.2589]
[1672844691151,11.0023,1248.6,1248.5,4.14676993]
[1672844693148,11.0023,1248.6,1248.2,11.3449138]
[1672844693346,13.0,1248.7,1248.2,11.3449138]
[1672844693347,11.0023,1248.3,1248.2,11.3449138]
[1672844693666,10.68667191,1248.3,1248.2,9.7969138]
[1672844693873,10.68667191,1248.3,1248.2,3.3989138]
[1672844694080,13.68667191,1248.3,1248.2,1.42073435]
[1672844694293,2.5,1248.2,1247.3,11.0073]
[1672844694510,7.995,1247.8,1247.5,3.0073]
[1672844694723,7.995,1247.8,1247.4,2.5]
[1672844695144,7.995,1247.8,1247.4,10.5]
[1672844695460,0.5,1247.7,1247.4,2.5]
[1672844695669,3.0073,1247.9,1247.4,10.5]
[1672844696187,3.0073,1248.1,1247.4,13.5073]
[1672844696398,11.0023,1248.1,1247.4,11.6887]
[1672844696607,0.5,1248.0,1247.4,14.6887]
[1672844696819,0.5,1248.0,1247.6,3.0073]
[1672844697236,0.5,1248.0,1247.7,1.5]
[1672844697765,2.5,1248.2,1247.7,1.5]
[1672844698501,10.495,1248.2,1247.7,9.5]
[1672844698707,10.495,1248.2,1247.7,1.5]
[1672844698917,3.0073,1248.3,1247.7,1.5]
[1672844699127,3.0073,1248.5,1247.8,3.0073]
[1672844699342,3.0073,1248.5,1247.9,5.0]
[1672844699670,2.5,1248.4,1247.9,6.1814]
[1672844699865,2.5,1248.4,1248.0,3.0073]
[1672844700072,2.5,1248.4,1248.1,2.5]
[1672844700390,3.0073,1248.5,1248.1,2.5]
[1672844700597,8.495,1248.6,1248.1,2.5]
[1672844700812,3.0073,1248.7,1248.1,2.5]
[1672844701231,3.0073,1248.7,1248.2,3.0073]
[1672844701649,3.0073,1248.7,1248.3,2.5]
[1672844701854,4.62771624,1248.9,1248.3,10.495]
[1672844702073,4.62771624,1248.9,1248.4,3.0073]
[1672844702281,4.62771624,1248.9,1248.4,6.0073]
[1672844702491,1.62041624,1248.9,1248.4,6.0073]
[1672844702697,1.62041624,1248.9,1248.6,3.0073]
[1672844702911,1.62041624,1248.9,1248.8,3.0073]
[1672844703436,1.89365593,1249.2,1248.9,1.1814]
[1672844703640,1.89365593,1249.2,1249.0,4.5073]
[1672844703856,1.89365593,1249.2,1249.1,2.5]
[1672844704277,1.89365593,1249.2,1249.0,4.5073]
[1672844704484,1.89365593,1249.2,1249.0,1.5]
[1672844706282,1.89365593,1249.2,1249.0,4.5073]
[1672844706906,1.89365593,1249.2,1249.0,1.5]
[1672844707116,4.90095593,1249.2,1249.0,1.5]
[1672844707327,4.90095593,1249.2,1248.9,2.5]
[1672844707537,12.89595593,1249.2,1248.7,5.0]
[1672844707746,12.89595593,1249.2,1248.6,3.0073]
[1672844708061,3.0073,1249.0,1248.7,2.5]
[1672844708587,11.0023,1249.0,1248.7,2.5]
[1672844708902,11.0023,1249.0,1248.6,3.0073]
[1672844709114,11.0023,1249.0,1248.4,5.5073]
[1672844709326,11.0023,1248.8,1248.4,5.5073]
[1672844709636,0.5,1248.7,1248.5,2.5]
[1672844710372,0.5,1248.7,1248.4,2.5]
[1672844710688,7.995,1248.5,1248.2,1.5]
[1672844711099,7.995,1248.5,1248.1,3.0073]
[1672844711100,7.995,1248.5,1248.0,2.5]
[1672844711313,11.0023,1248.4,1248.0,2.5]
[1672844711734,3.0073,1248.4,1248.0,2.5]
[1672844711946,3.0073,1248.6,1248.0,2.5]
[1672844712472,2.5,1248.5,1248.0,2.5]
[1672844712791,2.5,1248.5,1248.1,3.0073]
[1672844712996,3.0073,1248.6,1248.1,3.0073]
[1672844713210,2.5,1248.5,1248.2,1.5]
[1672844713838,4.19894476,1248.8,1248.2,1.5]
[1672844714048,2.5,1248.7,1248.3,3.0073]
[1672844714676,7.995,1248.7,1248.3,3.0073]
[1672844714885,1.19164476,1248.9,1248.3,3.0073]
[1672844715101,5.97727594,1249.0,1248.5,3.0073]
[1672844715311,4.19894476,1249.0,1248.5,3.0073]
[1672844715729,12.19394476,1249.0,1248.5,3.0073]
[1672844715945,12.19394476,1249.0,1248.6,2.5]
[1672844716369,11.0023,1249.0,1248.6,2.5]
[1672844716790,7.995,1249.0,1248.6,2.5]
[1672844717001,2.96997594,1249.1,1248.6,2.5]